fUST/lending_fUST_20250423
["ID","MTS","AMOUNT","RATE_DAILY","PERIOD"]
[358781554,1745422293617,-551.66,0.00023287,2]
[358781555,1745422293626,-500.0,0.00023287,2]
[358781556,1745422293636,-568.40255595,0.00023287,2]
[358781557,1745422293646,-1115.7,0.00023287,2]
[358781558,1745422293656,-762.07,0.00023287,2]
[358781559,1745422293666,-688.43,0.00023287,2]
[358781560,1745422293676,-500.0,0.00023287,2]
[358781561,1745422293687,-500.0,0.00023287,2]
[358781562,1745422293697,-500.0,0.00023287,2]
[358781563,1745422293707,-764.95,0.00023287,2]
[358781564,1745422293716,-884.75,0.00023287,2]
[358781565,1745422293726,-3501.3,0.00023287,2]
[358781566,1745422293736,-598.43637005,0.00023287,2]
[358781567,1745422293745,-500.0,0.00023287,2]
[358781568,1745422293756,-1338.63,0.00023287,2]
[358781569,1745422293765,-502.07,0.00023287,2]
[358781570,1745422293774,-577.68,0.00023287,2]
[358781571,1745422293784,-4051.75,0.00023287,2]
[358781572,1745422293794,-500.0,0.00023287,2]
[358781573,1745422293803,-668.05,0.00023287,2]
[358781574,1745422293813,-500.0,0.00023287,2]
[358781575,1745422293823,-633.95,0.00023287,2]
[358781576,1745422293835,-1302.8,0.00023287,2]
[358781577,1745422293845,-500.0,0.00023287,2]
[358781578,1745422293854,-1153.65,0.00023287,2]
[358781579,1745422293864,-553.58,0.00023287,2]
[358781580,1745422293874,-716.26,0.00023287,2]
[358781581,1745422293885,-500.0,0.00023287,2]
[358781582,1745422293895,-487.25665364,0.00023287,2]
[358781583,1745422293906,-12296.18,0.00023287,2]
[358781584,1745422293915,-500.0,0.00023287,2]
[358781585,1745422293924,-1046.67,0.00023287,2]
[358781586,1745422293934,-851.89,0.00023287,2]
[358781587,1745422293944,-534.56,0.00023287,2]
[358781588,1745422293954,-1188.25,0.00023287,2]
[358781589,1745422293964,-731.6,0.00023287,2]
[358781590,1745422293975,-12626.43,0.00023287,2]
[358781591,1745422293984,-696.88,0.00023287,2]
[358781592,1745422293994,-1205.58,0.00023287,2]
[358781593,1745422294003,-500.0,0.00023287,2]
[358781594,1745422294013,-500.0,0.00023287,2]
[358781595,1745422294023,-1012.84,0.00023287,2]
[358781596,1745422294033,-500.0,0.00023287,2]
[358781597,1745422294044,-4914.19,0.00023287,2]
[358781598,1745422294054,-4299.91,0.00023287,2]
[358781599,1745422294063,-510.48,0.00023287,2]
[358781600,1745422294073,-707.64,0.00023287,2]
[358781601,1745422294083,-1181.56,0.00023287,2]
[358781602,1745422294093,-1035.17,0.00023287,2]
[358781603,1745422294103,-863.0,0.00023287,2]
[358781604,1745422294113,-834.94,0.00023287,2]
[358781605,1745422294124,-3435.75,0.00023287,2]
[358781606,1745422294134,-753.56,0.00023287,2]
[358781607,1745422294145,-2278.45,0.00023287,2]
[358781608,1745422294157,-530.38,0.00023287,2]
[358781609,1745422294168,-814.85,0.00023287,2]
[358781610,1745422294178,-535.21,0.00023287,2]
[358781611,1745422294189,-500.0,0.00023287,2]
[358781612,1745422294356,-500.0,0.00023287,2]
[358781613,1745422294367,-890.07,0.00023287,2]
[358781614,1745422294378,-615.6,0.00023287,2]
[358781615,1745422294388,-957.38,0.00023287,2]
[358781616,1745422294398,-926.97,0.00023287,2]
[358781617,1745422294414,-558.82,0.00023287,2]
[358781618,1745422294424,-707.38,0.00023287,2]
[358781619,1745422294435,-1273.56,0.00023287,2]
[358781620,1745422294446,-1103.17,0.00023287,2]
[358781621,1745422294456,-500.0,0.00023287,2]
[358781622,1745422294466,-500.0,0.00023287,2]
[358781623,1745422294475,-500.0,0.00023287,2]
[358781624,1745422294485,-500.0,0.00023287,2]
[358781625,1745422294495,-657.04,0.00023287,2]
[358781626,1745422294505,-500.0,0.00023287,2]
[358781627,1745422294515,-2543.41,0.00023287,2]
[358781628,1745422294525,-1609.82,0.00023287,2]
[358781629,1745422294535,-7498.68,0.00023287,2]
[358781630,1745422294544,-783.91,0.00023287,2]
[358781631,1745422294554,-500.0,0.00023287,2]
[358781632,1745422294564,-2933.96,0.00023287,2]
[358781633,1745422294575,-692.21,0.00023287,2]
[358781634,1745422294584,-500.0,0.00023287,2]
[358781635,1745422294594,-5239.0,0.00023287,2]
[358781636,1745422294604,-935.39,0.00023287,2]
[358781637,1745422294614,-537.86,0.00023287,2]
[358781638,1745422294623,-616.52,0.00023287,2]
[358781639,1745422294633,-162.594617,0.00023424,3]
[358781640,1745422294643,-213.195,0.00023513,2]
[358781641,1745422294652,-151.0,0.0002355,2]
[358781642,1745422294667,-500.0,0.00023561,2]
[358781643,1745422294677,-500.0,0.00023561,2]
[358781644,1745422294687,-594.19,0.00023561,2]
[358781645,1745422294698,-909.19,0.00023561,2]
[358781646,1745422294708,-500.0,0.00023561,2]
[358781647,1745422294718,-500.0,0.00023561,2]
[358781648,1745422294728,-896.26,0.00023561,2]
[358781649,1745422294739,-1026.46,0.00023561,2]
[358781650,1745422294749,-519.07,0.00023561,2]
[358781651,1745422294758,-500.0,0.00023561,2]
[358781652,1745422294768,-500.0,0.00023561,2]
[358781653,1745422294778,-1150.28,0.00023561,2]
[358781654,1745422294790,-544.77,0.00023561,2]
[358781655,1745422294800,-899.96,0.00023561,2]
[358781656,1745422294810,-500.0,0.00023561,2]
[358781657,1745422294820,-3329.35,0.00023561,2]
[358781658,1745422294830,-528.28,0.00023561,2]
[358781659,1745422294839,-644.46,0.00023561,2]
[358781660,1745422294849,-500.0,0.00023561,2]
[358781661,1745422294858,-500.0,0.00023561,2]
[358781662,1745422294869,-756.81,0.00023561,2]
[358781663,1745422294879,-572.66,0.00023561,2]
[358781664,1745422294889,-500.0,0.00023561,2]
[358781665,1745422294899,-903.55,0.00023561,2]
[358781666,1745422294916,-506.12,0.00023561,2]
[358781667,1745422294926,-500.0,0.00023561,2]
[358781668,1745422294936,-500.0,0.00023561,2]
[358781669,1745422294946,-211.66453279,0.00023561,2]
[358781670,1745422294956,-500.0,0.00023561,2]
[358781671,1745422294966,-2150.63,0.00023561,2]
[358781672,1745422294976,-614.57,0.00023561,2]
[358781673,1745422294986,-677.08,0.00023561,2]
[358781674,1745422294996,-596.25,0.00023561,2]
[358781675,1745422295006,-740.32,0.00023561,2]
[358781676,1745422295016,-855.06,0.00023561,2]
[358781677,1745422295026,-831.25,0.00023561,2]
[358781678,1745422295036,-2175.19,0.00023561,2]
[358781679,1745422295046,-4454.73,0.00023561,2]
[358781680,1745422295056,-4421.38,0.00023561,2]
[358781681,1745422295065,-500.0,0.00023561,2]
[358781682,1745422295075,-500.0,0.00023561,2]
[358781683,1745422295085,-500.0,0.00023561,2]
[358781684,1745422295094,-500.0,0.00023561,2]
[358781685,1745422295104,-500.0,0.00023561,2]
[358781686,1745422295114,-318.87174861,0.00023561,2]
[358781687,1745422295124,-500.0,0.00023561,2]
[358781688,1745422295138,-500.0,0.00023561,2]
[358781689,1745422295148,-1146.61,0.00023561,2]
[358781690,1745422295160,-733.07,0.00023561,2]
[358781691,1745422295170,-500.0,0.00023561,2]
[358781692,1745422295180,-500.0,0.00023561,2]
[358781693,1745422295190,-500.0,0.00023561,2]
[358781694,1745422295200,-500.0,0.00023561,2]
[358781695,1745422295209,-559.8,0.00023561,2]
[358781696,1745422295219,-564.99,0.00023561,2]
[358781697,1745422295229,-551.66,0.00023561,2]
[358781698,1745422295240,-500.0,0.00023561,2]
[358781699,1745422295249,-1115.7,0.00023561,2]
[358781700,1745422295259,-762.07,0.00023561,2]
[358781701,1745422295268,-688.43,0.00023561,2]
[358781702,1745422295278,-500.0,0.00023561,2]
[358781703,1745422295287,-500.0,0.00023561,2]
[358781704,1745422295297,-500.0,0.00023561,2]
[358781705,1745422295306,-764.95,0.00023561,2]
[358781706,1745422295316,-884.75,0.00023561,2]
[358781707,1745422295326,-3501.3,0.00023561,2]
[358781708,1745422295336,-500.0,0.00023561,2]
[358781709,1745422295347,-1338.63,0.00023561,2]
[358781710,1745422295357,-502.07,0.00023561,2]
[358781711,1745422295366,-577.68,0.00023561,2]
[358781712,1745422295376,-4051.75,0.00023561,2]
[358781713,1745422295386,-500.0,0.00023561,2]
[358781714,1745422295396,-668.05,0.00023561,2]
[358781715,1745422295409,-500.0,0.00023561,2]
[358781716,1745422295419,-633.95,0.00023561,2]
[358781717,1745422295428,-1302.8,0.00023561,2]
[358781718,1745422295437,-500.0,0.00023561,2]
[358781719,1745422295447,-1153.65,0.00023561,2]
[358781720,1745422295457,-553.58,0.00023561,2]
[358781721,1745422295466,-716.26,0.00023561,2]
[358781722,1745422295476,-500.0,0.00023561,2]
[358781723,1745422295486,-12296.18,0.00023561,2]
[358781724,1745422295496,-500.0,0.00023561,2]
[358781725,1745422295505,-1046.67,0.00023561,2]
[358781726,1745422295514,-851.89,0.00023561,2]
[358781727,1745422295524,-534.56,0.00023561,2]
[358781728,1745422295533,-1188.25,0.00023561,2]
[358781729,1745422295543,-731.6,0.00023561,2]
[358781730,1745422295555,-12626.43,0.00023561,2]
[358781731,1745422295565,-696.88,0.00023561,2]
[358781732,1745422295575,-1205.58,0.00023561,2]
[358781733,1745422295584,-500.0,0.00023561,2]
[358781734,1745422295594,-1012.84,0.00023561,2]
[358781735,1745422295603,-500.0,0.00023561,2]
[358781736,1745422295613,-500.0,0.00023561,2]
[358781737,1745422295623,-4914.19,0.00023561,2]
[358781738,1745422295632,-4299.91,0.00023561,2]
[358781739,1745422295642,-510.48,0.00023561,2]
[358781740,1745422295651,-707.64,0.00023561,2]
[358781741,1745422295667,-1181.56,0.00023561,2]
[358781742,1745422295677,-1035.17,0.00023561,2]
[358781743,1745422295687,-863.0,0.00023561,2]
[358781744,1745422295698,-834.94,0.00023561,2]
[358781745,1745422295707,-3435.75,0.00023561,2]
[358781746,1745422295717,-753.56,0.00023561,2]
[358781747,1745422295726,-2278.45,0.00023561,2]
[358781748,1745422295736,-530.38,0.00023561,2]
[358781749,1745422295746,-814.85,0.00023561,2]
[358781750,1745422295756,-535.21,0.00023561,2]
[358781751,1745422295767,-500.0,0.00023561,2]
[358781752,1745422295777,-500.0,0.00023561,2]
[358781753,1745422295788,-890.07,0.00023561,2]
[358781754,1745422295798,-615.6,0.00023561,2]
[358781755,1745422295809,-957.38,0.00023561,2]
[358781756,1745422295819,-926.97,0.00023561,2]
[358781757,1745422295830,-558.82,0.00023561,2]
[358781758,1745422295841,-707.38,0.00023561,2]
[358781759,1745422295851,-1273.56,0.00023561,2]
[358781760,1745422295860,-1103.17,0.00023561,2]
[358781761,1745422295872,-500.0,0.00023561,2]
[358781762,1745422295882,-500.0,0.00023561,2]
[358781763,1745422295892,-500.0,0.00023561,2]
[358781764,1745422295903,-500.0,0.00023561,2]
[358781765,1745422295922,-657.04,0.00023561,2]
[358781766,1745422295932,-500.0,0.00023561,2]
[358781767,1745422295942,-2543.41,0.00023561,2]
[358781768,1745422295952,-1609.82,0.00023561,2]
[358781769,1745422295963,-7498.68,0.00023561,2]
[358781770,1745422295973,-783.91,0.00023561,2]
[358781771,1745422295983,-500.0,0.00023561,2]
[358781772,1745422295993,-2933.96,0.00023561,2]
[358781773,1745422296003,-692.21,0.00023561,2]
[358781774,1745422296013,-500.0,0.00023561,2]
[358781775,1745422296024,-5239.0,0.00023561,2]
[358781776,1745422296034,-935.39,0.00023561,2]
[358781777,1745422296044,-537.86,0.00023561,2]
[358781778,1745422296054,-616.52,0.00023561,2]
[358781779,1745422296063,-2500.0,0.00023564,2]
[358781780,1745422296074,-823.0,0.00023588,2]
[358781781,1745422296083,-880.08190923,0.00023727,2]
[358781782,1745422296093,-200.0,0.00023825,7]
[358781783,1745422296102,-361.80902884,0.00023825,7]
[358781784,1745422296112,-500.0,0.00023835,2]
[358781785,1745422296122,-500.0,0.00023835,2]
[358781786,1745422296132,-594.19,0.00023835,2]
[358781787,1745422296141,-909.19,0.00023835,2]
[358781788,1745422296150,-500.0,0.00023835,2]
[358781789,1745422296164,-500.0,0.00023835,2]
[358781790,1745422296173,-896.26,0.00023835,2]
[358781791,1745422296183,-1026.46,0.00023835,2]
[358781792,1745422296193,-519.07,0.00023835,2]
[358781793,1745422296203,-500.0,0.00023835,2]
[358781794,1745422296212,-500.0,0.00023835,2]
[358781795,1745422296222,-1150.28,0.00023835,2]
[358781796,1745422296231,-544.77,0.00023835,2]
[358781797,1745422296241,-899.96,0.00023835,2]
[358781798,1745422296250,-500.0,0.00023835,2]
[358781799,1745422296259,-3329.35,0.00023835,2]
[358781800,1745422296268,-528.28,0.00023835,2]
[358781801,1745422296278,-644.46,0.00023835,2]
[358781802,1745422296287,-500.0,0.00023835,2]
[358781803,1745422296297,-500.0,0.00023835,2]
[358781804,1745422296306,-756.81,0.00023835,2]
[358781805,1745422296316,-572.66,0.00023835,2]
[358781806,1745422296326,-500.0,0.00023835,2]
[358781807,1745422296335,-903.55,0.00023835,2]
[358781808,1745422296345,-506.12,0.00023835,2]
[358781809,1745422296355,-500.0,0.00023835,2]
[358781810,1745422296364,-500.0,0.00023835,2]
[358781811,1745422296374,-500.0,0.00023835,2]
[358781812,1745422296383,-2150.63,0.00023835,2]
[358781813,1745422296392,-614.57,0.00023835,2]
[358781814,1745422296402,-677.08,0.00023835,2]
[358781815,1745422296416,-596.25,0.00023835,2]
[358781816,1745422296425,-740.32,0.00023835,2]
[358781817,1745422296435,-855.06,0.00023835,2]
[358781818,1745422296445,-831.25,0.00023835,2]
[358781819,1745422296454,-2175.19,0.00023835,2]
[358781820,1745422296464,-4454.73,0.00023835,2]
[358781821,1745422296473,-4421.38,0.00023835,2]
[358781822,1745422296484,-500.0,0.00023835,2]
[358781823,1745422296493,-577.68927244,0.00023835,2]
[358781824,1745422296503,-500.0,0.00023835,2]
[358781825,1745422296512,-500.0,0.00023835,2]
[358781826,1745422296521,-500.0,0.00023835,2]
[358781827,1745422296530,-500.0,0.00023835,2]
[358781828,1745422296540,-1146.61,0.00023835,2]
[358781829,1745422296549,-733.07,0.00023835,2]
[358781830,1745422296559,-500.0,0.00023835,2]
[358781831,1745422296569,-500.0,0.00023835,2]
[358781832,1745422296578,-500.0,0.00023835,2]
[358781833,1745422296588,-500.0,0.00023835,2]
[358781834,1745422296597,-559.8,0.00023835,2]
[358781835,1745422296606,-564.99,0.00023835,2]
[358781836,1745422296616,-551.66,0.00023835,2]
[358781837,1745422296625,-500.0,0.00023835,2]
[358781838,1745422296634,-1115.7,0.00023835,2]
[358781839,1745422296643,-762.07,0.00023835,2]
[358781840,1745422296653,-688.43,0.00023835,2]
[358781841,1745422296665,-387.1967855,0.00023835,2]
[358781842,1745422296675,-500.0,0.00023835,2]
[358781843,1745422296684,-500.0,0.00023835,2]
[358781844,1745422296694,-764.95,0.00023835,2]
[358781845,1745422296703,-884.75,0.00023835,2]
[358781846,1745422296713,-3501.3,0.00023835,2]
[358781847,1745422296723,-500.0,0.00023835,2]
[358781848,1745422296732,-1338.63,0.00023835,2]
[358781849,1745422296742,-577.68,0.00023835,2]
[358781850,1745422296751,-502.07,0.00023835,2]
[358781851,1745422296761,-4051.75,0.00023835,2]
[358781852,1745422296770,-583.84,0.00023835,2]
[358781853,1745422296780,-668.05,0.00023835,2]
[358781854,1745422296790,-500.0,0.00023835,2]
[358781855,1745422296799,-633.95,0.00023835,2]
[358781856,1745422296809,-1302.8,0.00023835,2]
[358781857,1745422296819,-500.0,0.00023835,2]
[358781858,1745422296829,-1153.65,0.00023835,2]
[358781859,1745422296840,-553.58,0.00023835,2]
[358781860,1745422296850,-716.26,0.00023835,2]
[358781861,1745422296860,-371.05732345,0.00023835,2]
[358781862,1745422296870,-12296.18,0.00023835,2]
[358781863,1745422296879,-500.0,0.00023835,2]
[358781864,1745422296888,-1046.67,0.00023835,2]
[358781865,1745422296898,-851.89,0.00023835,2]
[358781866,1745422296911,-534.56,0.00023835,2]
[358781867,1745422296921,-1188.25,0.00023835,2]
[358781868,1745422296930,-731.6,0.00023835,2]
[358781869,1745422296940,-12626.43,0.00023835,2]
[358781870,1745422296950,-696.88,0.00023835,2]
[358781871,1745422296960,-1205.58,0.00023835,2]
[358781872,1745422296970,-500.0,0.00023835,2]
[358781873,1745422296980,-1012.84,0.00023835,2]
[358781874,1745422296990,-500.0,0.00023835,2]
[358781875,1745422297003,-500.0,0.00023835,2]
[358781876,1745422297014,-4914.19,0.00023835,2]
[358781877,1745422297024,-4299.91,0.00023835,2]
[358781878,1745422297034,-510.48,0.00023835,2]
[358781879,1745422297044,-707.64,0.00023835,2]
[358781880,1745422297054,-1181.56,0.00023835,2]
[358781881,1745422297064,-1035.17,0.00023835,2]
[358781882,1745422297074,-863.0,0.00023835,2]
[358781883,1745422297084,-834.94,0.00023835,2]
[358781884,1745422297093,-753.56,0.00023835,2]
[358781885,1745422297103,-3435.75,0.00023835,2]
[358781886,1745422297113,-2278.45,0.00023835,2]
[358781887,1745422297123,-530.38,0.00023835,2]
[358781888,1745422297134,-814.85,0.00023835,2]
[358781889,1745422297143,-535.21,0.00023835,2]
[358781890,1745422297153,-500.0,0.00023835,2]
[358781891,1745422297166,-500.0,0.00023835,2]
[358781892,1745422297176,-890.07,0.00023835,2]
[358781893,1745422297186,-615.6,0.00023835,2]
[358781894,1745422297196,-957.38,0.00023835,2]
[358781895,1745422297207,-926.97,0.00023835,2]
[358781896,1745422297216,-558.82,0.00023835,2]
[358781897,1745422297227,-707.38,0.00023835,2]
[358781898,1745422297236,-1273.56,0.00023835,2]
[358781899,1745422297247,-1103.17,0.00023835,2]
[358781900,1745422297256,-500.0,0.00023835,2]
[358781901,1745422297266,-500.0,0.00023835,2]
[358781902,1745422297276,-305.2572709,0.00023835,2]
[358781903,1745422297286,-500.0,0.00023835,2]
[358781904,1745422297296,-657.04,0.00023835,2]
[358781905,1745422297305,-500.0,0.00023835,2]
[358781906,1745422297316,-2543.41,0.00023835,2]
[358781907,1745422297326,-1609.82,0.00023835,2]
[358781908,1745422297335,-7498.68,0.00023835,2]
[358781909,1745422297345,-783.91,0.00023835,2]
[358781910,1745422297354,-500.0,0.00023835,2]
[358781911,1745422297364,-2933.96,0.00023835,2]
[358781912,1745422297373,-692.21,0.00023835,2]
[358781913,1745422297383,-500.0,0.00023835,2]
[358781914,1745422297394,-5239.0,0.00023835,2]
[358781915,1745422297403,-935.39,0.00023835,2]
[358781916,1745422297417,-537.86,0.00023835,2]
[358781917,1745422297426,-616.52,0.00023835,2]
[358781918,1745422297436,-343.55216678,0.000239,2]
[358781919,1745422297446,-2000.0,0.00024,4]
[358781920,1745422297455,-1000.0,0.00024,24]
[358781921,1745422297464,-160.0,0.00024,7]
[358781922,1745422297473,-420.82143104,0.00024,7]
[358781923,1745422297483,-160.0,0.00024,7]
[358781924,1745422297492,-151.0,0.00024098,2]
[358781925,1745422297501,-500.0,0.00024109,2]
[358781926,1745422297511,-413.77661711,0.00024109,2]
[358781927,1745422297521,-594.19,0.00024109,2]
[358781928,1745422297530,-909.19,0.00024109,2]
[358781929,1745422297539,-437.05224033,0.00024109,2]
[358781930,1745422297549,-500.0,0.00024109,2]
[358781931,1745422297559,-896.26,0.00024109,2]
[358781932,1745422297569,-1026.46,0.00024109,2]
[358781933,1745422297578,-519.07,0.00024109,2]
[358781934,1745422297587,-500.0,0.00024109,2]
[358781935,1745422297597,-500.0,0.00024109,2]
[358781936,1745422297606,-1150.28,0.00024109,2]
[358781937,1745422297616,-544.77,0.00024109,2]
[358781938,1745422297626,-899.96,0.00024109,2]
[358781939,1745422297635,-500.0,0.00024109,2]
[358781940,1745422297645,-3329.35,0.00024109,2]
[358781941,1745422297654,-528.28,0.00024109,2]
[358781942,1745422297666,-644.46,0.00024109,2]
[358781943,1745422297675,-500.0,0.00024109,2]
[358781944,1745422297685,-500.0,0.00024109,2]
[358781945,1745422297694,-756.81,0.00024109,2]
[358781946,1745422297703,-572.66,0.00024109,2]
[358781947,1745422297713,-500.0,0.00024109,2]
[358781948,1745422297723,-903.55,0.00024109,2]
[358781949,1745422297733,-506.12,0.00024109,2]
[358781950,1745422297742,-500.0,0.00024109,2]
[358781951,1745422297752,-500.0,0.00024109,2]
[358781952,1745422297761,-513.56594653,0.00024109,2]
[358781953,1745422297771,-2150.63,0.00024109,2]
[358781954,1745422297780,-614.57,0.00024109,2]
[358781955,1745422297790,-677.08,0.00024109,2]
[358781956,1745422297800,-596.25,0.00024109,2]
[358781957,1745422297809,-740.32,0.00024109,2]
[358781958,1745422297819,-855.06,0.00024109,2]
[358781959,1745422297829,-831.25,0.00024109,2]
[358781960,1745422297840,-2175.19,0.00024109,2]
[358781961,1745422297849,-4454.73,0.00024109,2]
[358781962,1745422297859,-378.69,0.00024109,2]
[358781963,1745422297869,-378.69,0.00024109,2]
[358781964,1745422297878,-378.69,0.00024109,2]
[358781965,1745422297887,-378.69,0.00024109,2]
[358781966,1745422297897,-378.69,0.00024109,2]
[358781967,1745422298078,-378.69,0.00024109,2]
[358781968,1745422298112,-378.69,0.00024109,2]
[358781969,1745422298122,-378.69,0.00024109,2]
[358781970,1745422298132,-378.69,0.00024109,2]
[358781971,1745422298142,-378.69,0.00024109,2]
[358781972,1745422298151,-4421.38,0.00024109,2]
[358781973,1745422298163,-378.69,0.00024109,2]
[358781974,1745422298173,-500.0,0.00024109,2]
[358781975,1745422298182,-378.69,0.00024109,2]
[358781976,1745422298192,-378.69,0.00024109,2]
[358781977,1745422298202,-378.69,0.00024109,2]
[358781978,1745422298212,-378.69,0.00024109,2]
[358781979,1745422298222,-378.69,0.00024109,2]
[358781980,1745422298232,-378.69,0.00024109,2]
[358781981,1745422298242,-378.69,0.00024109,2]
[358781982,1745422298251,-378.69,0.00024109,2]
[358781983,1745422298262,-500.0,0.00024109,2]
[358781984,1745422298271,-500.0,0.00024109,2]
[358781985,1745422298281,-500.0,0.00024109,2]
[358781986,1745422298291,-500.0,0.00024109,2]
[358781987,1745422298302,-1146.61,0.00024109,2]
[358781988,1745422298311,-733.07,0.00024109,2]
[358781989,1745422298321,-500.0,0.00024109,2]
[358781990,1745422298331,-500.0,0.00024109,2]
[358781991,1745422298341,-500.0,0.00024109,2]
[358781992,1745422298351,-500.0,0.00024109,2]
[358781993,1745422298361,-559.8,0.00024109,2]
[358781994,1745422298371,-564.99,0.00024109,2]
[358781995,1745422298381,-551.66,0.00024109,2]
[358781996,1745422298390,-500.0,0.00024109,2]
[358781997,1745422298400,-1115.7,0.00024109,2]
[358781998,1745422298411,-762.07,0.00024109,2]
[358781999,1745422298421,-688.43,0.00024109,2]
[358782000,1745422298431,-151.15309653,0.00024109,2]
[358782001,1745422298441,-500.0,0.00024109,2]
[358782002,1745422298451,-764.95,0.00024109,2]
[358782003,1745422298460,-884.75,0.00024109,2]
[358782004,1745422298470,-3501.3,0.00024109,2]
[358782005,1745422298480,-269.64368573,0.00024109,2]
[358782006,1745422298490,-1338.63,0.00024109,2]
[358782007,1745422298500,-502.07,0.00024109,2]
[358782008,1745422298510,-577.68,0.00024109,2]
[358782009,1745422298519,-4051.75,0.00024109,2]
[358782010,1745422298529,-668.05,0.00024109,2]
[358782011,1745422298539,-500.0,0.00024109,2]
[358782012,1745422298548,-633.95,0.00024109,2]
[358782013,1745422298558,-1302.8,0.00024109,2]
[358782014,1745422298567,-500.0,0.00024109,2]
[358782015,1745422298577,-1153.65,0.00024109,2]
[358782016,1745422298587,-553.58,0.00024109,2]
[358782017,1745422298597,-716.26,0.00024109,2]
[358782018,1745422298607,-12296.18,0.00024109,2]
[358782019,1745422298616,-484.07917428,0.00024109,2]
[358782020,1745422298626,-1046.67,0.00024109,2]
[358782021,1745422298635,-851.89,0.00024109,2]
[358782022,1745422298645,-534.56,0.00024109,2]
[358782023,1745422298655,-1188.25,0.00024109,2]
[358782024,1745422298668,-731.6,0.00024109,2]
[358782025,1745422298677,-12626.43,0.00024109,2]
[358782026,1745422298687,-696.88,0.00024109,2]
[358782027,1745422298697,-1205.58,0.00024109,2]
[358782028,1745422298707,-500.0,0.00024109,2]
[358782029,1745422298717,-1012.84,0.00024109,2]
[358782030,1745422298727,-500.0,0.00024109,2]
[358782031,1745422298737,-535.46723962,0.00024109,2]
[358782032,1745422298747,-4914.19,0.00024109,2]
[358782033,1745422298756,-4299.91,0.00024109,2]
[358782034,1745422298766,-510.48,0.00024109,2]
[358782035,1745422298776,-707.64,0.00024109,2]
[358782036,1745422298785,-1181.56,0.00024109,2]
[358782037,1745422298795,-1035.17,0.00024109,2]
[358782038,1745422298806,-863.0,0.00024109,2]
[358782039,1745422298815,-834.94,0.00024109,2]
[358782040,1745422298826,-753.56,0.00024109,2]
[358782041,1745422298837,-3435.75,0.00024109,2]
[358782042,1745422298848,-2278.45,0.00024109,2]
[358782043,1745422298858,-530.38,0.00024109,2]
[358782044,1745422298869,-814.85,0.00024109,2]
[358782045,1745422298879,-535.21,0.00024109,2]
[358782046,1745422298888,-325.45280246,0.00024109,2]
[358782047,1745422298898,-457.52524283,0.00024109,2]
[358782048,1745422298910,-890.07,0.00024109,2]
[358782049,1745422298920,-615.6,0.00024109,2]
[358782050,1745422298930,-957.38,0.00024109,2]
[358782051,1745422298939,-926.97,0.00024109,2]
[358782052,1745422298949,-558.82,0.00024109,2]
[358782054,1745422298959,-707.38,0.00024109,2]